Cogmind - Beta 11.1 @@@ ROGUE MODE // 2022.05.26 @ 13:50:45 Player: Decinym Result: Destroyed by DAS Turret with DAS Cannon Performance ------------- Evolutions (1) 500 Regions Visited (5) 1000 Robots Destroyed (48) 240 Value Destroyed (1225) 1225 Prototype IDs (32) 640 Alien Tech Used (0) 0 Bonus (-925) -925 TOTAL SCORE: 2680 Bonus ------- Aligned with FarCom 300 Friendly Fire -1225 Cogmind --------- Core Integrity 0/400 Matter 196/300 Energy 310/310 System Corruption 0% Temperature Hot (235) Movement Walking (260) Ox2 Location -9/Exiles Parts ------- > --- POWER (1) -------- Reinforced Fission Core > --- PROPULSION (3) --- Advanced Myomer Leg > --- UTILITY (3) ------ High-capacity Storage Unit Hardened Light Armor Plating Hardened Light Armor Plating > --- WEAPON (2) ------- 8R-AWN's Boregun > --- INVENTORY (20) --- Heavy Ion Engine Wheel Experimental Heat Sink Medium Battery (150) Medium Battery (150) Medium Battery (150) High-capacity Battery (250) YI-UF0's Bottomless Matter Pit (1500) Gravity Neutralizer Experimental Sensor Array Advanced Weapon Cycler Assault Rifle Shotgun Shotgun Longsword +1 Peak State ------------ > --- POWER ------------ Reinforced Fission Core > --- PROPULSION ------- Advanced Myomer Leg > --- UTILITY ---------- High-capacity Storage Unit Hardened Light Armor Plating Hardened Light Armor Plating > --- WEAPON ----------- Autogun 8R-AWN's Boregun > --- INVENTORY -------- Heavy Ion Engine Wheel Experimental Heat Sink Medium Battery Medium Battery Medium Battery High-capacity Battery YI-UF0's Bottomless Matter Pit Gravity Neutralizer Experimental Sensor Array Assault Rifle Shotgun Shotgun YI-UF0's Doublenader Longsword +1 [Rating: 36] Favorites ----------- Power Heavy Ion Engine Engine Heavy Ion Engine Power Core Reinforced Fission Core Propulsion Light Treads Treads Light Treads Leg Advanced Myomer Leg Wheel Wheel Utility Light Armor Plating Device Advanced Heat Sink Storage Medium Storage Unit Protection Light Armor Plating Weapon Assault Rifle Energy Gun Particle Gun Energy Cannon Heavy Particle Cannon Ballistic Gun Assault Rifle Launcher YI-UF0's Doublenader Special Weapon Plasma Flamer Slashing Weapon Longsword +1 Build | -11 -10 -10 -9 -9 -9 ------- Run | Scr Mat Min Mat Min Exi Slots Evolved 2 | . . . 2 . . Power . | . . . . . . Propulsion 1 | . . . 1 . . Utility 1 | . . . 1 . . Weapon . | . . . . . . Parts Attached 72 | . 13 7 25 9 18 Power 6 | . 2 1 2 . 1 Engine 5 | . 2 1 2 . . Core 1 | . . . . . 1 Reactor . | . . . . . . Propulsion 20 | . 4 1 10 3 2 Treads 16 | . 4 1 10 . 1 Leg 1 | . . . . . 1 Wheel 3 | . . . . 3 . Hover . | . . . . . . Flight . | . . . . . . Utility 20 | . 4 1 6 4 5 Device 8 | . 2 1 . 3 2 Storage 3 | . 1 . 1 . 1 Processor . | . . . . . . Hackware . | . . . . . . Protection 9 | . 1 . 5 1 2 Artifact . | . . . . . . Weapon 26 | . 3 4 7 2 10 Energy Gun 2 | . 2 . . . . Energy Cannon 4 | . . . 3 1 . Ballistic Gun 10 | . 1 2 2 . 5 Ballistic Cannon . | . . . . . . Launcher 3 | . . . . 1 2 Special Weapon 5 | . . 2 2 . 1 Impact Weapon . | . . . . . . Slashing Weapon 2 | . . . . . 2 Piercing Weapon . | . . . . . . Special Melee Weapon . | . . . . . . Unidentified Prototypes 7 | . 1 . 1 1 4 Parts Lost 17 | . 1 1 5 1 9 Power 1 | . . . 1 . . Propulsion 4 | . . . 1 . 3 Utility 5 | . . . 2 1 2 Weapon 7 | . 1 1 1 . 4 Highest Loss Streak 5 | . 1 1 2 1 5 To Critical Strikes 3 | . . . . . 3 Average Slot Usage (%) 96 | . 96 95 99 99 93 Engine 11 | . 13 14 11 11 9 Treads 23 | . 25 28 32 20 9 Wheel 5 | . . . . 12 16 Device 8 | . 9 1 11 11 8 Storage 12 | . 14 14 11 11 11 Protection 10 | . 1 12 10 11 12 Energy Gun 1 | . 8 . . . . Energy Cannon 8 | . . . 9 22 10 Ballistic Gun 9 | . 19 16 11 . 3 Special Weapon 2 | . . 7 . . 2 Naked Turns . | . . . . . . Heaviest Build 80 | 14 26 28 44 44 80 Greatest Support 69 | 20 43 46 69 60 30 Greatest Overweight (x) 19 | . . . . 4 19 Average Overweight (x) . | . . . . 1 2 Largest Inventory Capacity 20 | . 10 10 15 15 20 Average Capacity 13 | . 8 10 12 15 19 Most Carried 20 | . 10 10 15 15 20 Average Carried 12 | . 7 9 10 14 15 Final Capacity 20 | 8 10 10 15 15 20 Final Carried 15 | 6 10 10 15 15 15 Class Distribution -------------------- 72% | Mutant 27% | Scavenger-Mutant Dominant Class ---------------- Mutant | -10/Materials Mutant | -10/Mines Scavenger-Mutant | -9/Materials Scavenger-Mutant | -9/Mines Mutant | -9/Exiles Resources | -11 -10 -10 -9 -9 -9 ----------- Run | Scr Mat Min Mat Min Exi Matter Collected 3111 | 193 369 117 1035 1141 256 Remotely . | . . . . . . Salvage Created 2122 | . 599 167 1129 99 128 Parts 105 | . 34 9 56 3 3 Haulers Intercepted 5 | . 2 . 3 . . Recyclers Shooed . | . . . . . . Parts Field Recycled . | . . . . . . Retrieved Matter . | . . . . . . Parts Self-Destructed . | . . . . . . Prevented . | . . . . . . Kills | -11 -10 -10 -9 -9 -9 ------- Run | Scr Mat Min Mat Min Exi Combat Hostiles Destroyed 44 | . 9 2 19 8 6 Melee 1 | . . . . . 1 Guns 18 | . 9 . 9 . . Cannons 15 | . . 2 8 5 . AOE 8 | . . . . 3 5 Classes Destroyed 11 | . 4 2 3 2 . Worker 2 | . . 1 1 . . Tunneler 2 | . . 1 . 1 . Hauler 5 | . 2 . 3 . . Recycler 3 | . 1 . 2 . . Watcher 3 | . 1 . 2 . . Swarmer 4 | . . . 4 . . Grunt 17 | . 9 2 6 . . Brawler 1 | . . . 1 . . Sentry 8 | . . . 8 . . Demolisher 1 | . . . . 1 . Assembled 12 | . . . . 7 5 Best Kill Streak 6 | . 3 1 6 5 5 Combat Bots Only 5 | . 3 1 3 4 5 Max Kills in Single Turn 3 | . 1 1 1 3 2 Gunslinging . | . . . . . . Exploded 3 | . . . . 3 2 Melee 1 | . . . . . 1 Uniques/NPCs Destroyed 2 | . . 1 . . 1 YI-UF0 (-10/Mines) 8R-AWN (-9/Exiles) Combat | -11 -10 -10 -9 -9 -9 -------- Run | Scr Mat Min Mat Min Exi Damage Taken 3549 | . 484 122 1434 499 1010 Core 524 | . 82 12 222 49 159 Absorbed by Shields 205 | . . . . . 205 Core Remaining (%) 81 | 100 . 62 . . . Volleys Fired 215 | . 56 35 98 14 12 Largest 2 | . 2 1 2 2 1 Hottest 150 | . 85 100 150 143 70 Shots Fired 358 | . 108 35 177 26 12 Gun 217 | . 108 . 106 . 3 Cannon 76 | . . . 52 24 . Launcher 11 | . . . . 2 9 Special 54 | . . 35 19 . . Kinetic 198 | . 89 . 106 . 3 Thermal 149 | . 19 35 71 24 . Explosive 11 | . . . . 2 9 Electromagnetic . | . . . . . . Robot Hit Streak 18 | . 16 9 18 15 6 Robot Miss Streak 7 | . 3 7 4 3 3 Penetration Max . | . . . . . . Secondary Targets 2 | . 2 . . . . Max Gunslinging Chain 1 | . 1 . . . . Shots Hit Robots 282 | . 74 25 128 18 37 Core Hits 103 | . 26 9 35 12 21 Critical Kills 1 | . . . 1 . . Critical Parts Destroyed . | . . . . . . Critical Strikes 17 | . . 5 9 . 3 Burn 12 | . . 5 7 . . Meltdown 1 | . . . 1 . . Sever 4 | . . . 1 . 3 Melee Attacks 31 | . . . . . 31 Impact . | . . . . . . Slashing 31 | . . . . . 31 Piercing . | . . . . . . Sneak Attacks . | . . . . . . Combat Hostiles . | . . . . . . Follow-up Attacks . | . . . . . . Damage Inflicted 5809 | . 935 323 2046 603 1902 Guns 1919 | . 935 . 962 . 22 Cannons 1321 | . . . 932 389 . Explosions 676 | . . . . 204 472 Melee 1382 | . . . . . 1382 Ramming 61 | . . 25 . 10 26 Kinetic 1734 | . 750 . 962 . 22 Thermal 1956 | . 185 298 1084 389 . Explosive 676 | . . . . 204 472 Electromagnetic . | . . . . . . Impact . | . . . . . . Slashing 1382 | . . . . . 1382 Piercing . | . . . . . . Highest Corruption . | . . . . . . Average Corruption . | . . . . . . Corruption Purged . | . . . . . . Corruption Blocked . | . . . . . . Overload Shots . | . . . . . . Overflow Damage 51 | . . . 2 9 40 Projectiles 11 | . . . 2 9 . Explosions . | . . . . . . Melee 40 | . . . . . 40 Knockbacks 1 | . . 1 . . . Impact 1 | . . 1 . . . Kinetic . | . . . . . . Secondary . | . . . . . . Self-Inflicted Damage 160 | . . . . 45 115 Shots 8 | . . . . 1 7 Rammed 23 | . . 15 . 1 7 Targets Rammed 24 | . . 16 . 1 7 Kicked . | . . . . . . Crushed 1 | . . 1 . . . Highest Temperature 467 | . 467 360 126 135 235 Average Temperature 88 | . 102 135 42 50 111 Received Heat Transfer 984 | . 288 69 600 . 27 Effects 3 | . . 3 . . . Energy Bleed 1 | . . 1 . . . Interference 1 | . . 1 . . . Matter Decay 1 | . . 1 . . . Siege Activations . | . . . . . . Robots Corrupted . | . . . . . . Combat Hostiles . | . . . . . . Parts Fried . | . . . . . . Impact Corruptions . | . . . . . . Robots Melted 2 | . . . 2 . . Combat Hostiles 2 | . . . 2 . . Parts Melted 12 | . . 1 11 . . Heat Transferred 6994 | . 435 2456 3474 629 . Parts Sabotaged . | . . . . . . Parts Stolen . | . . . . . . Parts Stripped . | . . . . . . Power Chain Reactions . | . . . . . . Missiles Intercepted . | . . . . . . Alert | -11 -10 -10 -9 -9 -9 ------- Run | Scr Mat Min Mat Min Exi Peak Influence 375 | . 205 40 375 196 . Initial 145 | . . 14 3 145 . Average 108 | . 75 11 221 95 . Maximum Alert Level 1 | . 1 . 1 . . Low Security (%) 80 | . 98 100 37 100 . Level 1 19 | . 1 . 62 . . Level 2 . | . . . . . . Level 3 . | . . . . . . Level 4 . | . . . . . . Level 5 . | . . . . . . High Security . | . . . . . . Max Security . | . . . . . . Squads Dispatched 2 | . 1 . 1 . . Investigation 1 | . 1 . . . . Extermination . | . . . . . . Reinforcement 1 | . . . 1 . . Assault . | . . . . . . Garrison . | . . . . . . Intercept . | . . . . . . Searches Triggered . | . . . . . . Construction Impeded . | . . . . . . Haulers Reinforced . | . . . . . . Active Scanning Responses . | . . . . . . Cargo Convoy Interrupts . | . . . . . . Stealth | -11 -10 -10 -9 -9 -9 --------- Run | Scr Mat Min Mat Min Exi Distress Signals 3 | . 1 . 2 . . Communications Jammed . | . . . . . . Distress Signals . | . . . . . . Times Spotted 84 | . 14 2 40 11 17 Peak Tracking Total 9 | . 3 2 5 4 9 Tactical Retreats 5 | . . . 3 . 2 Traps | -11 -10 -10 -9 -9 -9 ------- Run | Scr Mat Min Mat Min Exi Traps Triggered 1 | . 1 . . . . Indirectly . | . . . . . . Trap Hack Attempts . | . . . . . . Triggered . | . . . . . . Disarmed 6 | . . . 6 . . Reprogrammed . | . . . . . . Reused . | . . . . . . Traps Extracted . | . . . . . . Installed . | . . . . . . Triggered . | . . . . . . Exploded 3 | . . . . . 3 Machines | -11 -10 -10 -9 -9 -9 ---------- Run | Scr Mat Min Mat Min Exi Machines Disabled 3 | . . . . . 3 Max in Single Turn 1 | . . . . . 1 Machines Sabotaged . | . . . . . . Garrisons Compromised . | . . . . . . Overloaded Fab Kills . | . . . . . . Hacking | -11 -10 -10 -9 -9 -9 --------- Run | Scr Mat Min Mat Min Exi Machines Accessed 10 | . 2 . 6 . 2 Terminals 7 | . 2 . 5 . . Fabricators . | . . . . . . Repair Stations . | . . . . . . Recycling Units . | . . . . . . Scanalyzers 1 | . . . 1 . . Garrison Access . | . . . . . . Total Hacks 23 | . 7 . 14 . 2 Successful 12 | . 5 . 5 . 2 Failed 11 | . 2 . 9 . . Catastrophic 2 | . . . 2 . . Database Lockouts . | . . . . . . Manual 19 | . 6 . 12 . 1 Terminals 19 | . 7 . 12 . . Fabricators . | . . . . . . Repair Stations . | . . . . . . Recycling Units . | . . . . . . Scanalyzers 2 | . . . 2 . . Garrison Access . | . . . . . . Terminal Hacks 7 | . 3 . 2 . 2 Record 1 | . . . . . 1 Part Schematic 1 | . . . 1 . . Branch Access Points 1 | . 1 . . . . Disarm Traps 1 | . . . 1 . . Zone Layout 2 | . 2 . . . . EX-Prototype ID Bank 1 | . . . . . 1 Fabricator Hacks . | . . . . . . Repair Station Hacks . | . . . . . . Recycling Unit Hacks . | . . . . . . Scanalyzer 2 | . . . 2 . . Insert Component 2 | . . . 2 . . Garrison Access Hacks . | . . . . . . Unauthorized Hacks 3 | . 2 . 1 . . Terminals 3 | . 2 . 1 . . Track 1 | . 1 . . . . Disrupt 1 | . . . 1 . . Operators 1 | . 1 . . . . Fabricators . | . . . . . . Repair Stations . | . . . . . . Recycling Units . | . . . . . . Scanalyzers . | . . . . . . Garrison Access . | . . . . . . Data Cores Recovered . | . . . . . . Used . | . . . . . . Hacking Detections 8 | . 2 . 6 . . Full Trace Events . | . . . . . . Feedback Events . | . . . . . . Feedback Blocked . | . . . . . . Robot Schematics Acquired . | . . . . . . Robots Built . | . . . . . . Authchips . | . . . . . . Time . | . . . . . . Total Robot Build Rating . | . . . . . . Part Schematics Acquired 1 | . . . 1 . . Parts Built . | . . . . . . Authchips . | . . . . . . Time . | . . . . . . Total Part Build Rating . | . . . . . . Parts Repaired . | . . . . . . Time . | . . . . . . Parts Recycled . | . . . . . . Recycled Matter . | . . . . . . Retrieved Matter . | . . . . . . Retrieved Components . | . . . . . . Parts Scanalyzed . | . . . . . . Part Schematics Acquired . | . . . . . . Parts Damaged . | . . . . . . Bothacking | -11 -10 -10 -9 -9 -9 ------------ Run | Scr Mat Min Mat Min Exi Used RIF Installer . | . . . . . . Robots Hacked . | . . . . . . Non-combat . | . . . . . . Combat . | . . . . . . Robot Hacks Applied . | . . . . . . Relay Couplers Released . | . . . . . . Fabnet Peak Effective % . | . . . . . . Robots Rewired . | . . . . . . Allies Hacked . | . . . . . . Hacks Repelled . | . . . . . . Allies | -11 -10 -10 -9 -9 -9 -------- Run | Scr Mat Min Mat Min Exi Total Allies 2 | . . 1 . 1 . Largest Group 1 | . . 1 1 1 1 Highest-Rated Group 31 | . . 31 31 31 31 Highest-Rated Ally 31 | . . 31 31 31 31 Total Orders . | . . . . . . Ally Attacks 4 | . . . . 4 . Total Damage 84 | . . . . 84 . Kills 2 | . . . . 2 . Allies Corrupted . | . . . . . . Allies Melted . | . . . . . . Intel | -11 -10 -10 -9 -9 -9 ------- Run | Scr Mat Min Mat Min Exi Robot Analysis Total . | . . . . . . Derelict Logs Recovered 5 | . . 3 . 2 . Drone Launches . | . . . . . . Drone Recoveries . | . . . . . . Exploration | -11 -10 -10 -9 -9 -9 ------------- Run | Scr Mat Min Mat Min Exi Turns Passed 5709 | . 893 1171 1389 982 1274 Spaces Moved 3219 | 1 423 634 616 715 830 Core 2 | . . . . . 2 Treads 1881 | . 396 634 616 233 2 Legs 89 | 1 27 . . . 61 Wheels 1247 | . . . . 482 765 Hover . | . . . . . . Flight . | . . . . . . Fastest Speed 110 | 120 120 160 160 110 110 Average Speed 144 | 120 157 160 160 126 128 Slowest Speed 1000 | 120 160 160 160 160 1000 Overloaded Moves . | . . . . . . Propulsion Burnouts . | . . . . . . Robots Hopped . | . . . . . . Cave-ins Triggered . | . . . . . . Exploration Rate (%) 64 | 2 68 99 53 99 68 Regions Visited 5 Branch Regions 3 Pre-discovered Areas 3 | . . 2 . . 1 Known Exits Taken 1 | . 1 . . . . Unknown Exits Taken 4 | 1 . 1 1 1 . Scrap Searched 3 | . . 1 . 2 . Spaces Dug . | . . . . . . Terrain Destroyed 76 | . . . 8 24 44 Melee . | . . . . . . Projectile 11 | . . . 8 3 . AOE 65 | . . . . 21 44 Terrain Rammed . | . . . . . . Walls Destroyed . | . . . . . . Machines Disabled . | . . . . . . Actions | -11 -10 -10 -9 -9 -9 --------- Run | Scr Mat Min Mat Min Exi Total 3850 | . 547 720 834 766 983 Wait 193 | . 27 21 65 18 62 Move 3214 | . 422 633 615 714 830 Hop . | . . . . . . Pick Up 43 | . 13 3 14 3 10 Fast Attach 25 | . 7 2 7 4 5 Attach 19 | . 3 1 6 2 7 Detach 4 | . . 1 . . 3 Swap 28 | . 3 4 12 3 6 Drop 54 | . 16 4 17 7 10 Fire 215 | . 56 35 98 14 12 Melee 31 | . . . . . 31 Ram . | . . . . . . Kick . | . . . . . . Crush 24 | . . 16 . 1 7 Escape Stasis . | . . . . . . Rewire . | . . . . . . Trap . | . . . . . . Miscellaneous . | . . . . . . Route ------- -11/Scrapyard -10/Materials (discovered 3 exits: *Mat x2 / *Min) -10/Mines (discovered 2 exits: *Mat x2) -9/Materials (discovered 2 exits: [*Mat] / [*Min]) -9/Mines (discovered 3 exits: [*Mat x2] / *Exi) -9/Exiles (discovered 1 exit: [*Min]) History --------- Turn | Location | Event 1 | -11/Scrapyard | Discovered new exit (range 0) 1 | -11/Scrapyard | Entered Materials 207 | -10/Materials | Discovered new exit (range 7) 257 | -10/Materials | Identified exit to Mines 266 | -10/Materials | Discovered new exit (range 11) 317 | -10/Materials | Build established: Mutant 611 | -10/Materials | Discovered new exit (range 15) 894 | -10/Materials | Entered Mines 923 | -10/Mines | A weapon hastily lodged in a ceiling crevice suddenly fell to the ground 1180 | -10/Mines | YI-UF0 nonchalantly dropped a Grenade Launcher on the ground 1293 | -10/Mines | Destroyed YI-UF0 1307 | -10/Mines | Found Prototype Launcher 1313 | -10/Mines | Found Prototype Storage 1356 | -10/Mines | Discovered new exit (range 15) 1370 | -10/Mines | Learned location of Storage (-7) 1710 | -10/Mines | Discovered new exit (range 5) 1807 | -10/Mines | Learned Materials terminal intel 1809 | -10/Mines | Learned location of Zion (-6) 1828 | -10/Mines | Received a Mining Laser from a helpful Derelict 2065 | -10/Mines | Entered Materials 2065 | -9/Materials | Accompanied by 1 ally 2065 | -9/Materials | Evolved 2 slots: Propulsion x1, Utility x1 2066 | -9/Materials | Loaded intel: 12 terminal locations 2081 | -9/Materials | Identified YI-UF0's Doublenader 2081 | -9/Materials | Identified YI-UF0's Bottomless Matter Pit 2808 | -9/Materials | Discovered new exit (range 8) 2810 | -9/Materials | Build established: Scavenger-Mutant 3341 | -9/Materials | Core integrity fell below 50% 3448 | -9/Materials | Discovered new exit (range 5) 3454 | -9/Materials | Entered Mines 3468 | -9/Mines | Assembled infested the area 3685 | -9/Mines | Escorted by a lone wolf Derelict 3767 | -9/Mines | Deemed a non-threat by the Exiles lab entrance 3839 | -9/Mines | Discovered new exit (range 15) 3900 | -9/Mines | Discovered new exit (range 5) 3903 | -9/Mines | Learned location of 2 exits from Materials 4041 | -9/Mines | Learned 8 Materials zone layouts 4091 | -9/Mines | Found a damaged Exp. Sensor Array with a note attached 4093 | -9/Mines | Found Prototype Device 4093 | -9/Mines | Identified Exp. Sensor Array 4348 | -9/Mines | Build established: Mutant 4427 | -9/Mines | Discovered new exit (range 5) 4436 | -9/Mines | Entered Exiles 4436 | -9/Exiles | Accompanied by 1 ally 4453 | -9/Exiles | Discovered new exit (range 15) 4466 | -9/Exiles | Met 8R-AWN 4483 | -9/Exiles | Met EX-HEX 4513 | -9/Exiles | Met EX-BIN 4527 | -9/Exiles | Aligned with FarCom system 4528 | -9/Exiles | Given EX-Vault access code 4556 | -9/Exiles | Opened EX-Vault 4582 | -9/Exiles | Warned to stay clear of 0b10 Research branches 4677 | -9/Exiles | Met EX-DEC 4986 | -9/Exiles | Found Longsword +1 5325 | -9/Exiles | Attacked by the Exiles 5472 | -9/Exiles | Core integrity fell below 20% 5494 | -9/Exiles | Lost 5 parts (3n1u1w) 5502 | -9/Exiles | Destroyed 8R-AWN 5549 | -9/Exiles | Found Prototype Ballistic Gun 5549 | -9/Exiles | Identified 8R-AWN's Boregun 5710 | -9/Exiles | Destroyed by DAS Turret with DAS Cannon Last Messages --------------- 05526_ The unstable cave ceiling collapses. 05531_ Acquired Prototype Device. 05531_ Identified Gravity Neutralizer. 05535_ Acquired Prototype Device. 05535_ Identified Exp. Heat Sink. 05543_ Dropped Hvy. Ion Engine. 05544_ Acquired Rnf. Fission Core. 05549_ Acquired Prototype Ballistic Gun. 05549_ Identified 8R-AWN's Boregun. 05568_ Acquired Adv. Weapon Cycler. 05574_ Extracted 3 energy. 05610_ Extracted 94 matter. 05650_ The unstable cave ceiling collapses. 05702_ Knocked back. 05703_ Acquired 2 matter. 05704_ Autogun destroyed. 05704_ Knocked back. 05706_ YI-UF0's Doublenader destroyed. 05709_ HV Slug penetrates DAS Turret. 05710_ The unstable cave ceiling collapses. Map ----- +----------------------------------------------------+ | ??????????????????????????????????????#" | | ??????????????????????????????????????#" ## | | ??????????????????????????????????????#""""""?# | | ??????????????????????????????????????##"###??# | | ??????????????????????????????????????????????# | | ??????????????????????????????????????????????# | | ?????????????????????????????????????????????## | | ?????????????#######?????????????????????????#" | | ######???????# "#?????????????????????????#" | | #""#??????# "#?????????????????????????#" | | ??????# "#?????????????????????????#" | | #????## ""#?????????????#???????????#" | | #####" ""#???????????? ""?????????#" | | ##" ""#????????????" """????????## | | #"" ###????????????" ?????????# | | ??# ##????????????"" ?????????#" | | ??#### #####?????????"" "?????????#" | | ?????### * ###??????? ""?????????#" | | #######" ! ########?????" "?????????##" | | !! # # ####??# #????????##"" | | ! "" # ## #### ###?######"" | | ! ""# # ##X# #"###""""""" | | ! #"# # """""" " "" | | !" """"#"# ## # "" """ " | | ##"###### # ###### % " " | | # ##????# # #????### @ | | #??????# # #??????#;; ] | | #???????### #??????### ] | | ??????????# #????????# | | ??????????# ?????????# | | ??????????? ?????????## """""" | | ??????????? ??????????# ######" | | ??????????? ??????????# ""##????## | | ??????????? ??????????##"" """##??????? | | ??????????? ??????????#""" """##???????? | | ??????????????????????#"" ""#????????? | | ??????????????????????#"" ########??# | | ??????????????????????#""" ## #### | | ??????????????????????#"" """ | | ??????????????????????##"" t | | ???????????????????????#"" | | ????????????????????????# | | ????????????????????????#" " | | ????????????????????????#"""" ""## | | ????????????????????????#"" ""#### | | ?????????????????????????" """"##??# | | ?????????????????????????""" """#??## | | ?????????????????????????? ""##??#! | | ??????????????????????????"" """##???#" | | ???????????????????????????""" #?????#" | +----------------------------------------------------+ Best States ------------- Heat Dissipation 47 Energy Generation 19 Energy Capacity 310 Matter Stores 300 Matter Capacity 300 Sight Range 16 Robot Scan Range 14 Terrain Scan Density 10 Armor Coverage 300 Resistance: TH 10 Evasion (%) 50 Recoil Reduction 3 Item Schematics ----------------- Huge Storage Unit | -9/Materials | Hacked Robot Schematics ------------------ None Fabricated ------------ Nothing Alien Tech Used ----------------- None Achievements -------------- None Challenges ------------ None Game ------ Seed OpticalHeartSlayer Manual? 0 Play Time 00:31:37 Cumulative 358.2 hours Start 2022.05.25 @ 19:14:16 End 2022.05.26 @ 13:50:45 Sessions 5 Manual Loads 0 Difficulty Rogue Special Mode None Game No. 389 Rogue 389 Adventurer 0 Explorer 0 Win Type - Total 29 Types 18/3/2/1/2/0/3/0/0 Lore% 89 Gallery% 88 Achievement% 80 Wizard Run 0 Options --------- ASCII 0 Keyboard 0 Movement Arrows Keybinds 0 Fullscreen 2 Font 18/SmallcapsGlow Map View 76x50 Tactical HUD 1 Map Filters NONE Filters NONE Steam 1 RUN: 7a973b74-eefe-47e1-803b-3290f7032b36